Workbook

Sheet KontantstrømUtskrift
B1: Kontantstrøm Kontoutdrag
B3: Regnskapsåret begynner: | D3: (Før) Oppstart | E3: =UPPER(TEXT(RegnskapsårStartDato,"mmm")) -> JAN | F3: =UPPER(TEXT(EOMONTH(RegnskapsårStartDato,1),"mmm")) -> FEB | G3: =UPPER(TEXT(EOMONTH(RegnskapsårStartDato,2),"mmm")) -> MAR | H3: =UPPER(TEXT(EOMONTH(RegnskapsårStartDato,3),"mmm")) -> APR | I3: =UPPER(TEXT(EOMONTH(RegnskapsårStartDato,4),"mmm")) -> MAI | J3: =UPPER(TEXT(EOMONTH(RegnskapsårStartDato,5),"mmm")) -> JUN | K3: =UPPER(TEXT(EOMONTH(RegnskapsårStartDato,6),"mmm")) -> JUL | L3: =UPPER(TEXT(EOMONTH(RegnskapsårStartDato,7),"mmm")) -> AUG | M3: =UPPER(TEXT(EOMONTH(RegnskapsårStartDato,8),"mmm")) -> SEP | N3: =UPPER(TEXT(EOMONTH(RegnskapsårStartDato,9),"mmm")) -> OKT | O3: =UPPER(TEXT(EOMONTH(RegnskapsårStartDato,10),"mmm")) -> NOV | P3: =UPPER(TEXT(EOMONTH(RegnskapsårStartDato,11),"mmm")) -> DES | R3: Totalt
B4: 2012-01-05 | D4: EST | E4: =RegnskapsårStartDato -> 2012-01-05 | F4: =EOMONTH(E4,0)+DAY(RegnskapsårStartDato) -> 2012-02-05 | G4: =EOMONTH(F4,0)+DAY(RegnskapsårStartDato) -> 2012-03-05 | H4: =EOMONTH(G4,0)+DAY(RegnskapsårStartDato) -> 2012-04-05 | I4: =EOMONTH(H4,0)+DAY(RegnskapsårStartDato) -> 2012-05-05 | J4: =EOMONTH(I4,0)+DAY(RegnskapsårStartDato) -> 2012-06-05 | K4: =EOMONTH(J4,0)+DAY(RegnskapsårStartDato) -> 2012-07-05 | L4: =EOMONTH(K4,0)+DAY(RegnskapsårStartDato) -> 2012-08-05 | M4: =EOMONTH(L4,0)+DAY(RegnskapsårStartDato) -> 2012-09-05 | N4: =EOMONTH(M4,0)+DAY(RegnskapsårStartDato) -> 2012-10-05 | O4: =EOMONTH(N4,0)+DAY(RegnskapsårStartDato) -> 2012-11-05 | P4: =EOMONTH(O4,0)+DAY(RegnskapsårStartDato) -> 2012-12-05 | R4: Artikkel-EST
B6: Tilgjengelige kontanter (start på måned) | D6: 100 | E6: =D50 -> 100 | F6: =E50 -> -125 | G6: 45 | H6: -1 | I6: 224 | J6: 269 | K6: 269 | L6: 269 | M6: 269 | N6: 269 | O6: 269 | P6: 269 | R6: =P6 -> 269
B8: Kontantinnbetalinger
B10: Kontantsalg | E10: 125 | F10: 120 | G10: 130 | H10: 100 | R10: =SUM(Kontantinnbetalinger[[#This Row],[Periode 0]:[Periode 12]]) -> 475
B11: Innsamlinger fra CR-kontoer | H11: 75 | I11: 45 | R11: =SUM(Kontantinnbetalinger[[#This Row],[Periode 0]:[Periode 12]]) -> 120
B12: Lån/ annen kontantinng. | E12: 50 | F12: 50 | G12: 50 | H12: 50 | R12: =SUM(Kontantinnbetalinger[[#This Row],[Periode 0]:[Periode 12]]) -> 200
R13: =SUM(Kontantinnbetalinger[[#This Row],[Periode 0]:[Periode 12]]) -> 0
B14: Totalt | D14: =SUBTOTAL(109,Kontantinnbetalinger[Periode 0]) -> 0 | E14: =SUBTOTAL(109,Kontantinnbetalinger[Periode 1]) -> 175 | F14: =SUBTOTAL(109,Kontantinnbetalinger[Periode 2]) -> 170 | G14: =SUBTOTAL(109,Kontantinnbetalinger[Periode 3]) -> 180 | H14: =SUBTOTAL(109,Kontantinnbetalinger[Periode 4]) -> 225 | I14: =SUBTOTAL(109,Kontantinnbetalinger[Periode 5]) -> 45 | J14: =SUBTOTAL(109,Kontantinnbetalinger[Periode 6]) -> 0 | K14: =SUBTOTAL(109,Kontantinnbetalinger[Periode 7]) -> 0 | L14: =SUBTOTAL(109,Kontantinnbetalinger[Periode 8]) -> 0 | M14: =SUBTOTAL(109,Kontantinnbetalinger[Periode 9]) -> 0 | N14: =SUBTOTAL(109,Kontantinnbetalinger[Periode 10]) -> 0 | O14: =SUBTOTAL(109,Kontantinnbetalinger[Periode 11]) -> 0 | P14: =SUBTOTAL(109,Kontantinnbetalinger[Periode 12]) -> 0 | R14: =SUBTOTAL(109,Kontantinnbetalinger[Totalt]) -> 795
B15: Kontanter tilgjengelig totalt (før utbetaling) | D15: =D6+SUM(Kontantinnbetalinger[Periode 0]) -> 100 | E15: =E6+SUM(Kontantinnbetalinger[Periode 1]) -> 275 | F15: =F6+SUM(Kontantinnbetalinger[Periode 2]) -> 45 | G15: =G6+SUM(Kontantinnbetalinger[Periode 3]) -> 225 | H15: =H6+SUM(Kontantinnbetalinger[Periode 4]) -> 224 | I15: =I6+SUM(Kontantinnbetalinger[Periode 5]) -> 269 | J15: =J6+SUM(Kontantinnbetalinger[Periode 6]) -> 269 | K15: =K6+SUM(Kontantinnbetalinger[Periode 7]) -> 269 | L15: =L6+SUM(Kontantinnbetalinger[Periode 8]) -> 269 | M15: =M6+SUM(Kontantinnbetalinger[Periode 9]) -> 269 | N15: =N6+SUM(Kontantinnbetalinger[Periode 10]) -> 269 | O15: =O6+SUM(Kontantinnbetalinger[Periode 11]) -> 269 | P15: =P6+SUM(Kontantinnbetalinger[Periode 12]) -> 269 | R15: =R6+SUM(Kontantinnbetalinger[Totalt]) -> 1064
B17: Kontantutbetalinger
B18: Innkjøp (varer) | E18: 400 | G18: 226 | R18: =SUM(KontanterUtbetalt[[#This Row],[Periode 0]:[Periode 12]]) -> 626
B19: Innkjøp (angi) | R19: =SUM(KontanterUtbetalt[[#This Row],[Periode 0]:[Periode 12]]) -> 0
B20: Innkjøp (angi) | R20: =SUM(KontanterUtbetalt[[#This Row],[Periode 0]:[Periode 12]]) -> 0
B21: Bruttolønninger (nøyaktig uttak) | R21: =SUM(KontanterUtbetalt[[#This Row],[Periode 0]:[Periode 12]]) -> 0
B22: Lønnsutgifter (skatt osv.) | R22: =SUM(KontanterUtbetalt[[#This Row],[Periode 0]:[Periode 12]]) -> 0
B23: Eksterne tjenester | R23: =SUM(KontanterUtbetalt[[#This Row],[Periode 0]:[Periode 12]]) -> 0
B24: Rekvisita (kontor og drift) | R24: =SUM(KontanterUtbetalt[[#This Row],[Periode 0]:[Periode 12]]) -> 0
B25: Reparasjon og vedlikehold | R25: =SUM(KontanterUtbetalt[[#This Row],[Periode 0]:[Periode 12]]) -> 0
B26: Annonsering | R26: =SUM(KontanterUtbetalt[[#This Row],[Periode 0]:[Periode 12]]) -> 0
B27: Bil, levering og reise | R27: =SUM(KontanterUtbetalt[[#This Row],[Periode 0]:[Periode 12]]) -> 0
B28: Regnskap og juridisk | R28: =SUM(KontanterUtbetalt[[#This Row],[Periode 0]:[Periode 12]]) -> 0
B29: Leie | R29: =SUM(KontanterUtbetalt[[#This Row],[Periode 0]:[Periode 12]]) -> 0
B30: Telefon | R30: =SUM(KontanterUtbetalt[[#This Row],[Periode 0]:[Periode 12]]) -> 0
B31: Tjenester | R31: =SUM(KontanterUtbetalt[[#This Row],[Periode 0]:[Periode 12]]) -> 0
B32: Forsikring | R32: =SUM(KontanterUtbetalt[[#This Row],[Periode 0]:[Periode 12]]) -> 0
B33: Avgifter (eiendom og så videre) | R33: =SUM(KontanterUtbetalt[[#This Row],[Periode 0]:[Periode 12]]) -> 0
B34: Renter | R34: =SUM(KontanterUtbetalt[[#This Row],[Periode 0]:[Periode 12]]) -> 0
B35: Andre utgifter (angi) | R35: =SUM(KontanterUtbetalt[[#This Row],[Periode 0]:[Periode 12]]) -> 0
B36: Annet (angi) | R36: =SUM(KontanterUtbetalt[[#This Row],[Periode 0]:[Periode 12]]) -> 0
B37: Annet (angi) | R37: =SUM(KontanterUtbetalt[[#This Row],[Periode 0]:[Periode 12]]) -> 0
B38: Diverse | R38: =SUM(KontanterUtbetalt[[#This Row],[Periode 0]:[Periode 12]]) -> 0
B39: Totalt | D39: =SUBTOTAL(109,KontanterUtbetalt[Periode 0]) -> 0 | E39: =SUBTOTAL(109,KontanterUtbetalt[Periode 1]) -> 400 | F39: =SUBTOTAL(109,KontanterUtbetalt[Periode 2]) -> 0 | G39: =SUBTOTAL(109,KontanterUtbetalt[Periode 3]) -> 226 | H39: =SUBTOTAL(109,KontanterUtbetalt[Periode 4]) -> 0 | I39: =SUBTOTAL(109,KontanterUtbetalt[Periode 5]) -> 0 | J39: =SUBTOTAL(109,KontanterUtbetalt[Periode 6]) -> 0 | K39: =SUBTOTAL(109,KontanterUtbetalt[Periode 7]) -> 0 | L39: =SUBTOTAL(109,KontanterUtbetalt[Periode 8]) -> 0 | M39: =SUBTOTAL(109,KontanterUtbetalt[Periode 9]) -> 0 | N39: =SUBTOTAL(109,KontanterUtbetalt[Periode 10]) -> 0 | O39: =SUBTOTAL(109,KontanterUtbetalt[Periode 11]) -> 0 | P39: =SUBTOTAL(109,KontanterUtbetalt[Periode 12]) -> 0 | R39: =SUBTOTAL(109,KontanterUtbetalt[Totalt]) -> 626
B41: Kontantutbetalinger (ikke P&L)
B42: Avdrag på lån | R42: =SUM(KontanterUtbetalt2[[#This Row],[Periode 0]:[Periode 12]]) -> 0
B43: Kapitalkjøp (angi) | R43: =SUM(KontanterUtbetalt2[[#This Row],[Periode 0]:[Periode 12]]) -> 0
B44: Andre oppstartskostnader | R44: =SUM(KontanterUtbetalt2[[#This Row],[Periode 0]:[Periode 12]]) -> 0
B45: Reserve og/eller deponering | R45: =SUM(KontanterUtbetalt2[[#This Row],[Periode 0]:[Periode 12]]) -> 0
B46: Eiers kontantuttak | R46: =SUM(KontanterUtbetalt2[[#This Row],[Periode 0]:[Periode 12]]) -> 0
B47: Totalt | D47: =SUBTOTAL(109,KontanterUtbetalt2[Periode 0]) -> 0 | E47: =SUBTOTAL(109,KontanterUtbetalt2[Periode 1]) -> 0 | F47: =SUBTOTAL(109,KontanterUtbetalt2[Periode 2]) -> 0 | G47: =SUBTOTAL(109,KontanterUtbetalt2[Periode 3]) -> 0 | H47: =SUBTOTAL(109,KontanterUtbetalt2[Periode 4]) -> 0 | I47: =SUBTOTAL(109,KontanterUtbetalt2[Periode 5]) -> 0 | J47: =SUBTOTAL(109,KontanterUtbetalt2[Periode 6]) -> 0 | K47: =SUBTOTAL(109,KontanterUtbetalt2[Periode 7]) -> 0 | L47: =SUBTOTAL(109,KontanterUtbetalt2[Periode 8]) -> 0 | M47: =SUBTOTAL(109,KontanterUtbetalt2[Periode 9]) -> 0 | N47: =SUBTOTAL(109,KontanterUtbetalt2[Periode 10]) -> 0 | O47: =SUBTOTAL(109,KontanterUtbetalt2[Periode 11]) -> 0 | P47: =SUBTOTAL(109,KontanterUtbetalt2[Periode 12]) -> 0 | R47: =SUBTOTAL(109,KontanterUtbetalt2[Totalt]) -> 0
B48: Kontantutbetalinger totalt | D48: =SUM(KontanterUtbetalt[Periode 0],KontanterUtbetalt2[Periode 0]) -> 0 | E48: =SUM(KontanterUtbetalt[Periode 1],KontanterUtbetalt2[Periode 1]) -> 400 | F48: =SUM(KontanterUtbetalt[Periode 2],KontanterUtbetalt2[Periode 2]) -> 0 | G48: =SUM(KontanterUtbetalt[Periode 3],KontanterUtbetalt2[Periode 3]) -> 226 | H48: =SUM(KontanterUtbetalt[Periode 4],KontanterUtbetalt2[Periode 4]) -> 0 | I48: =SUM(KontanterUtbetalt[Periode 5],KontanterUtbetalt2[Periode 5]) -> 0 | J48: =SUM(KontanterUtbetalt[Periode 6],KontanterUtbetalt2[Periode 6]) -> 0 | K48: =SUM(KontanterUtbetalt[Periode 7],KontanterUtbetalt2[Periode 7]) -> 0 | L48: =SUM(KontanterUtbetalt[Periode 8],KontanterUtbetalt2[Periode 8]) -> 0 | M48: =SUM(KontanterUtbetalt[Periode 9],KontanterUtbetalt2[Periode 9]) -> 0 | N48: =SUM(KontanterUtbetalt[Periode 10],KontanterUtbetalt2[Periode 10]) -> 0 | O48: =SUM(KontanterUtbetalt[Periode 11],KontanterUtbetalt2[Periode 11]) -> 0 | P48: =SUM(KontanterUtbetalt[Periode 12],KontanterUtbetalt2[Periode 12]) -> 0 | R48: =SUM(KontanterUtbetalt[Totalt],KontanterUtbetalt2[Totalt]) -> 626
B50: Kontantbeholdning (månedslutt) | D50: =D15-D48 -> 100 | E50: -125 | F50: 45 | G50: -1 | H50: 224 | I50: 269 | J50: 269 | K50: 269 | L50: 269 | M50: 269 | N50: 269 | O50: 269 | P50: 269 | R50: =R15-R48 -> 438
